[Event "GER-ch Youth U14 2020"]
[Site "Willingen"]
[Date "2020.10.23"]
[Round "5.21"]
[White "Pfeffer, Samuel"]
[Black "Wiedersich, Hendryk"]
[Result "1-0"]
[ECO "D10"]
[WhiteElo "1427"]
[BlackElo "1570"]
[Annotator "NA RC"]
[PlyCount "53"]
[EventDate "2020.10.20"]
[EventType "swiss"]
[EventRounds "7"]
[EventCountry "GER"]
[SourceTitle "playchess.com"]
[Source "ChessBase"]
[SourceQuality "1"]
[TimeControl "40/5400+30:1800+30"]

1. d4 {[%emt 0:00:00]} d5 {[%emt 0:00:00]} 2. c4 {[%emt 0:01:16]} c6 {[%emt 0:00:00]} 3. Nf3 {[%emt 0:01:33]} Nf6 {[%emt 0:00:00]} 4. cxd5 {[%emt 0:01:23]} cxd5 {[%emt 0:00:12]} 5. Nc3 {[%emt 0:01:45]} a6 {[%emt 0:00:12]} 6. Bf4 {[%emt 0:01:38]} Nc6 {[%emt 0:01:46]} 7. Rc1 {[%emt 0:02:05]} Bg4 {[%emt 0:00:26]} 8. Ne5 {[%emt 0:02:29]} Rc8 {[%emt 0:04:43]} 9. Nxg4 {[%emt 0:02:58]} Nxg4 {[%emt 0:00:17]} 10. h3 {[%emt 0:02:18]} Nf6 {[%emt 0:00:08]} 11. e3 {[%emt 0:02:17]} e6 {[%emt 0:01:02]} 12. Bd3 {[%emt 0:04:16]} Bd6 {[%emt 0:00:48]} 13. Bxd6 {[%emt 0:03:30]} Qxd6 {[%emt 0:00:53]} 14. O-O {[%emt 0:01:37]} O-O {[%emt 0:00:21]} 15. a3 {[%emt 0:02:07]} b5 {[%emt 0:01:40]} 16. Rc2 {[%emt 0:03:45]} Rc7 {[%emt 0:04:46]} 17. Qb1 {[%emt 0:02:23]} Rfc8 {[%emt 0:01:09]} 18. Rfc1 {[%emt 0:02:50]} Na5 {[%emt 0:02:31]} 19. b3 {[%emt 0:03:25]} g6 {[%emt 0:05:25]} 20. Qb2 {[%emt 0:04:34]} e5 {[%emt 0:04:04]} 21. Nxb5 {[%emt 0:04:26]} axb5 {[%emt 0:07:28]} 22. dxe5 {[%emt 0:02:30]} Rxc2 {[%emt 0:01:46]} 23. Rxc2 {[%emt 0:02:03]} Rxc2 {[%emt 0:00:41]} 24. Bxc2 {[%emt 0:00:18]} Qb6 {[%emt 0:04:32]} 25. exf6 {[%emt 0:01:12]} Qe6 {[%emt 0:03:14]} 26. Qc3 {[%emt 0:02:45]} Nc6 {[%emt 0:00:10]} 27. Bd3 {[%emt 0:01:05]} 1-0

[Event "GER-ch Youth U14 2020"]
[Site "Willingen"]
[Date "2020.10.23"]
[Round "5.22"]
[White "Bock, Marlon"]
[Black "Schwartz, Oliver"]
[Result "0-1"]
[ECO "B23"]
[WhiteElo "1776"]
[BlackElo "1794"]
[Annotator "NA RC"]
[PlyCount "100"]
[EventDate "2020.10.20"]
[EventType "swiss"]
[EventRounds "7"]
[EventCountry "GER"]
[SourceTitle "playchess.com"]
[Source "ChessBase"]
[SourceQuality "1"]
[TimeControl "40/5400+30:1800+30"]

1. e4 {[%emt 0:00:00]} c5 {[%emt 0:00:00]} 2. Nc3 {[%emt 0:00:00]} Nc6 {[%emt 0:00:21]} 3. Nge2 {[%emt 0:00:15]} g6 {[%emt 0:00:53]} 4. g3 {[%emt 0:01:12]} Bg7 {[%emt 0:01:09]} 5. Bg2 {[%emt 0:00:46]} e6 {[%emt 0:02:25]} 6. h4 {[%emt 0:02:00]} h5 {[%emt 0:07:02]} 7. d3 {[%emt 0:03:10]} Nge7 {[%emt 0:03:18]} 8. Bg5 {[%emt 0:04:19]} d6 {[%emt 0:05:20]} 9. O-O {[%emt 0:03:02]} O-O {[%emt 0:01:21]} 10. Qd2 {[%emt 0:02:38]} Kh7 {[%emt 0:01:21]} 11. Rae1 {[%emt 0:04:49]} Rb8 {[%emt 0:03:33]} 12. Nd1 {[%emt 0:06:25]} b5 {[%emt 0:05:48]} 13. c3 {[%emt 0:05:26]} Qa5 {[%emt 0:11:42]} 14. b4 {[%emt 0:11:28]} Qa3 {[%emt 0:09:25]} 15. bxc5 {[%emt 0:05:32]} dxc5 {[%emt 0:00:21]} 16. Bf4 {[%emt 0:02:28]} Rb7 {[%emt 0:04:38]} 17. Bd6 {[%emt 0:03:37]} Rd8 {[%emt 0:02:30]} 18. e5 {[%emt 0:02:50]} Rbd7 {[%emt 0:09:25]} 19. f4 {[%emt 0:02:46]} Bb7 {[%emt 0:01:54]} 20. d4 {[%emt 0:01:31]} Nf5 {[%emt 0:01:37]} 21. dxc5 {[%emt 0:16:44]} Qxc5+ {[%emt 0:00:52]} 22. Bxc5 {[%emt 0:00:23]} Rxd2 {[%emt 0:00:05]} 23. Nf2 {[%emt 0:02:53]} Bf8 {[%emt 0:04:51]} 24. Ne4 {[%emt 0:02:39]} Rxa2 {[%emt 0:02:33]} 25. Nc1 {[%emt 0:03:31]} Rc2 {[%emt 0:02:54]} 26. Nb3 {[%emt 0:01:58]} Nxg3 {[%emt 0:03:22]} 27. Nxg3 {[%emt 0:05:31]} Rxc3 {[%emt 0:00:07]} 28. Bxf8 {[%emt 0:01:41]} Rxg3 {[%emt 0:00:24]} 29. Nc5 {[%emt 0:00:18]} Ba8 {[%emt 0:03:57]} 30. Ne4 {[%emt 0:01:31]} Rxg2+ {[%emt 0:01:56]} 31. Kxg2 {[%emt 0:00:07]} Rxf8 {[%emt 0:00:03]} 32. Kg3 {[%emt 0:00:54]} Nd4 {[%emt 0:02:32]} 33. Nd6 {[%emt 0:00:58]} Bd5 {[%emt 0:02:03]} 34. Ra1 {[%emt 0:00:48]} Nf5+ {[%emt 0:03:11]} 35. Nxf5 {[%emt 0:01:18]} gxf5 {[%emt 0:01:05]} 36. Rg1 {[%emt 0:01:36]} Rg8+ {[%emt 0:01:41]} 37. Kf2 {[%emt 0:00:07]} Rg4 {[%emt 0:00:14]} 38. Rxg4 {[%emt 0:01:11]} fxg4 {[%emt 0:00:15]} 39. Rxa7 {[%emt 0:00:06]} Kg6 {[%emt 0:00:08]} 40. Ra3 {[%emt 0:00:55]} b4 {[%emt 0:02:02]} 41. Ra4 {[%emt 0:30:31]} b3 {[%emt 0:30:33]} 42. Rb4 {[%emt 0:00:05]} f6 {[%emt 0:00:00]} 43. exf6 {[%emt 0:00:00]} Kxf6 {[%emt 0:00:00]} 44. Rb8 {[%emt 0:00:00]} Ke7 {[%emt 0:00:00]} 45. Ke3 {[%emt 0:00:00]} g3 {[%emt 0:00:00]} 46. Kd2 {[%emt 0:00:00]} Kf7 {[%emt 0:00:00]} 47. Ke2 {[%emt 0:00:00]} g2 {[%emt 0:00:00]} 48. Kf2 {[%emt 0:00:00]} Kf6 {[%emt 0:00:00]} 49. Rb4 {[%emt 0:00:00]} Ke7 {[%emt 0:00:00]} 50. Rb8 {[%emt 0:00:00]} Kd7 {[%emt 0:00:00]} 0-1

[Event "GER-ch Youth U14 2020"]
[Site "Willingen"]
[Date "2020.10.23"]
[Round "6.1"]
[White "Laux, Dominik"]
[Black "Bakiev, Diyor"]
[Result "1/2-1/2"]
[ECO "D00"]
[WhiteElo "2009"]
[BlackElo "2070"]
[Annotator "ChessBase"]
[PlyCount "82"]
[EventDate "2020.10.20"]
[EventType "swiss"]
[EventRounds "7"]
[EventCountry "GER"]
[SourceTitle "playchess.com"]
[Source "ChessBase"]
[SourceQuality "1"]
[TimeControl "40/5400+30:1800+30"]

1. d4 {[%emt 0:00:00]} d5 {[%emt 0:00:00]} 2. Bf4 {[%emt 0:00:39]} c5 {[%emt 0:00:00]} 3. e3 {[%emt 0:00:33]} cxd4 {[%emt 0:00:00]} 4. exd4 {[%emt 0:00:12]} Nc6 {[%emt 0:00:00]} 5. c3 {[%emt 0:01:54]} Bf5 {[%emt 0:00:21]} 6. Nf3 {[%emt 0:01:25]} e6 {[%emt 0:00:13]} 7. Qb3 {[%emt 0:04:24]} Qd7 {[%emt 0:00:09]} 8. Nbd2 {[%emt 0:02:06]} f6 {[%emt 0:00:10]} 9. h4 {[%emt 0:06:48]} h5 {[%emt 0:03:47]} 10. Be2 {[%emt 0:04:13]} Nge7 {[%emt 0:02:42]} 11. O-O {[%emt 0:06:01]} Ng6 {[%emt 0:02:46]} 12. Bg3 {[%emt 0:00:56]} a6 {[%emt 0:13:09]} 13. c4 {[%emt 0:03:56]} Na5 {[%emt 0:07:21]} 14. Qe3 {[%emt 0:01:41]} Kf7 {[%emt 0:07:03]} 15. Rac1 {[%emt 0:04:14]} Bd6 {[%emt 0:07:43]} 16. Bd3 {[%emt 0:07:55]} Ne7 {[%emt 0:05:17]} 17. Bxd6 {[%emt 0:06:10]} Qxd6 {[%emt 0:01:05]} 18. c5 {[%emt 0:06:50]} Qc7 {[%emt 0:05:00]} 19. b4 {[%emt 0:03:41]} Nac6 {[%emt 0:00:32]} 20. Rb1 {[%emt 0:01:24]} Bxd3 {[%emt 0:03:58]} 21. Qxd3 {[%emt 0:00:21]} Nf5 {[%emt 0:00:41]} 22. Rfd1 {[%emt 0:08:22]} Rhg8 {[%emt 0:09:39]} 23. a4 {[%emt 0:04:24]} a5 {[%emt 0:03:39]} 24. b5 {[%emt 0:01:38]} Nb4 {[%emt 0:00:12]} 25. Qc3 {[%emt 0:04:57]} Qf4 {[%emt 0:04:38]} 26. g3 {[%emt 0:01:37]} Qg4 {[%emt 0:01:52]} 27. Nf1 {[%emt 0:01:06]} g5 {[%emt 0:07:24]} 28. hxg5 {[%emt 0:02:44]} Qh3 {[%emt 0:01:48]} 29. N1h2 {[%emt 0:01:46]} fxg5 {[%emt 0:03:05]} 30. Kh1 {[%emt 0:03:37]} Nh6 {[%emt 0:02:22]} 31. Ng1 {[%emt 0:03:11]} Qf5 {[%emt 0:00:07]} 32. Qf3 {[%emt 0:00:11]} g4 {[%emt 0:01:47]} 33. Qxf5+ {[%emt 0:03:09]} Nxf5 {[%emt 0:00:11]} 34. Ne2 {[%emt 0:01:03]} Rae8 {[%emt 0:01:05]} 35. Nf1 {[%emt 0:01:14]} e5 {[%emt 0:03:00]} 36. Rb2 {[%emt 0:00:54]} exd4 {[%emt 0:02:34]} 37. Nxd4 {[%emt 0:00:17]} Nxd4 {[%emt 0:00:34]} 38. Rxd4 {[%emt 0:00:02]} Re1 {[%emt 0:00:08]} 39. Kg2 {[%emt 0:01:14]} Ra1 {[%emt 0:00:17]} 40. Ne3 {[%emt 0:02:28]} Rg5 {[%emt 0:02:02]} 41. Nc2 {[%emt 0:08:16]} Rxa4 {[%emt 0:05:38]} 1/2-1/2

[Event "GER-ch Youth U14 2020"]
[Site "Willingen"]
[Date "2020.10.23"]
[Round "6.2"]
[White "Costa, Leonardo"]
[Black "Albert, Markus"]
[Result "0-1"]
[ECO "C55"]
[WhiteElo "2165"]
[BlackElo "1727"]
[Annotator "ChessBase"]
[PlyCount "50"]
[EventDate "2020.10.20"]
[EventType "swiss"]
[EventRounds "7"]
[EventCountry "GER"]
[SourceTitle "playchess.com"]
[Source "ChessBase"]
[SourceQuality "1"]
[TimeControl "40/5400+30:1800+30"]

1. e4 {[%emt 0:00:00]} e5 {[%emt 0:00:23]} 2. Bc4 {[%emt 0:00:00]} Nc6 {[%emt 0:01:46]} 3. Nf3 {[%emt 0:00:48]} Nf6 {[%emt 0:01:15]} 4. d3 {[%emt 0:00:19]} Be7 {[%emt 0:02:28]} 5. O-O {[%emt 0:00:10]} O-O {[%emt 0:00:21]} 6. Re1 {[%emt 0:00:08]} d6 {[%emt 0:00:44]} 7. a4 {[%emt 0:00:07]} Kh8 {[%emt 0:01:00]} 8. Nbd2 {[%emt 0:16:06]} Ng8 {[%emt 0:06:36]} 9. Nf1 {[%emt 0:04:23]} f5 {[%emt 0:03:22]} 10. exf5 {[%emt 0:05:03]} Bxf5 {[%emt 0:02:07]} 11. h3 {[%emt 0:00:27]} Nf6 {[%emt 0:09:46]} 12. Ng3 {[%emt 0:00:50]} Bg6 {[%emt 0:00:48]} 13. Nh4 {[%emt 0:04:51]} Qe8 {[%emt 0:07:06]} 14. Nxg6+ {[%emt 0:02:25]} Qxg6 {[%emt 0:01:54]} 15. Ba2 {[%emt 0:02:25]} Rad8 {[%emt 0:06:25]} 16. c3 {[%emt 0:08:44]} d5 {[%emt 0:17:07]} 17. Bb1 {[%emt 0:11:59]} Bd6 {[%emt 0:07:45]} 18. Re3 {[%emt 0:08:40]} e4 {[%emt 0:06:43]} 19. Ne2 {[%emt 0:09:34]} Bc5 {[%emt 0:02:33]} 20. d4 {[%emt 0:01:06]} Bd6 {[%emt 0:00:29]} 21. Ng3 {[%emt 0:08:15]} Bf4 {[%emt 0:01:38]} 22. Re1 {[%emt 0:00:06]} Bxg3 {[%emt 0:00:32]} 23. fxg3 {[%emt 0:00:04]} Qxg3 {[%emt 0:00:09]} 24. Bc2 {[%emt 0:04:53]} Ng4 {[%emt 0:03:20]} 25. Bg5 {[%emt 0:02:34]} Qh2# 0-1

[Event "GER-ch Youth U14 2020"]
[Site "Willingen"]
[Date "2020.10.23"]
[Round "6.5"]
[White "Stork, Christopher"]
[Black "Hagner, Bennet"]
[Result "0-1"]
[ECO "C55"]
[WhiteElo "1869"]
[BlackElo "2080"]
[Annotator "ChessBase"]
[PlyCount "96"]
[EventDate "2020.10.20"]
[EventType "swiss"]
[EventRounds "7"]
[EventCountry "GER"]
[SourceTitle "playchess.com"]
[Source "ChessBase"]
[SourceQuality "1"]
[TimeControl "40/5400+30:1800+30"]

1. e4 {[%emt 0:00:00]} e5 {[%emt 0:00:00]} 2. Nf3 {[%emt 0:00:00]} Nc6 {[%emt 0:00:00]} 3. Bc4 {[%emt 0:00:00]} Nf6 {[%emt 0:00:00]} 4. d3 {[%emt 0:00:10]} h6 {[%emt 0:00:00]} 5. c3 {[%emt 0:00:48]} g5 {[%emt 0:00:12]} 6. O-O {[%emt 0:06:17]} d6 {[%emt 0:00:44]} 7. Nbd2 {[%emt 0:01:04]} Bg7 {[%emt 0:00:21]} 8. h3 {[%emt 0:04:32]} O-O {[%emt 0:00:48]} 9. Re1 {[%emt 0:01:33]} Kh8 {[%emt 0:04:49]} 10. Nf1 {[%emt 0:02:02]} d5 {[%emt 0:03:34]} 11. exd5 {[%emt 0:01:20]} Nxd5 {[%emt 0:00:08]} 12. Ng3 {[%emt 0:01:16]} f5 {[%emt 0:01:19]} 13. Nh5 {[%emt 0:02:24]} Qd6 {[%emt 0:01:31]} 14. Nxg7 {[%emt 0:03:05]} Kxg7 {[%emt 0:00:02]} 15. d4 {[%emt 0:01:06]} e4 {[%emt 0:00:47]} 16. Ne5 {[%emt 0:01:38]} Be6 {[%emt 0:03:12]} 17. Bxd5 {[%emt 0:04:48]} Qxd5 {[%emt 0:05:24]} 18. f4 {[%emt 0:07:04]} Nxe5 {[%emt 0:00:23]} 19. dxe5 {[%emt 0:01:15]} Qxd1 {[%emt 0:01:46]} 20. Rxd1 {[%emt 0:00:23]} Kg6 {[%emt 0:00:37]} 21. g3 {[%emt 0:01:26]} Rfd8 {[%emt 0:03:32]} 22. Be3 {[%emt 0:01:44]} Bc4 {[%emt 0:01:38]} 23. Kf2 {[%emt 0:05:50]} Bd3 {[%emt 0:00:59]} 24. Rd2 {[%emt 0:08:25]} Rd5 {[%emt 0:02:21]} 25. b3 {[%emt 0:05:39]} Ra5 {[%emt 0:08:01]} 26. a4 {[%emt 0:07:09]} Ra6 {[%emt 0:11:09]} 27. b4 {[%emt 0:03:53]} Rc6 {[%emt 0:01:56]} 28. Bd4 {[%emt 0:01:05]} Rc4 {[%emt 0:01:52]} 29. Rb2 {[%emt 0:07:11]} Kf7 {[%emt 0:16:10]} 30. b5 {[%emt 0:10:07]} Ke6 {[%emt 0:07:42]} 31. Rb4 {[%emt 0:04:55]} Kd5 {[%emt 0:02:34]} 32. Rxc4 {[%emt 0:00:51]} Kxc4 {[%emt 0:00:20]} 33. h4 {[%emt 0:01:21]} gxf4 {[%emt 0:05:41]} 34. gxf4 {[%emt 0:00:08]} Rg8 {[%emt 0:00:06]} 35. Rg1 {[%emt 0:00:35]} Rxg1 {[%emt 0:00:27]} 36. Kxg1 {[%emt 0:00:02]} Bc2 {[%emt 0:00:58]} 37. Bxa7 {[%emt 0:00:48]} Bxa4 {[%emt 0:04:34]} 38. Bb8 {[%emt 0:01:10]} Kxc3 {[%emt 0:06:09]} 39. Bxc7 {[%emt 0:00:50]} Bxb5 {[%emt 0:04:42]} 40. Kf2 {[%emt 0:00:46]} Kd3 {[%emt 0:00:01]} 41. Bb6 {[%emt 0:30:48]} Bd7 {[%emt 0:31:15]} 42. Bc5 {[%emt 0:00:00]} h5 {[%emt 0:00:00]} 43. Bb6 {[%emt 0:00:00]} Be6 {[%emt 0:00:00]} 44. Ba7 {[%emt 0:00:00]} b5 {[%emt 0:00:00]} 45. Bc5 {[%emt 0:00:00]} Bd7 {[%emt 0:00:00]} 46. Ke1 {[%emt 0:00:00]} e3 {[%emt 0:00:00]} 47. Bd6 {[%emt 0:00:00]} Be6 {[%emt 0:00:00]} 48. Bb4 {[%emt 0:00:00]} Ke4 0-1

[Event "GER-ch Youth U14 2020"]
[Site "Willingen"]
[Date "2020.10.23"]
[Round "6.7"]
[White "Farokhi, Keyvan"]
[Black "Schubert, Nikita"]
[Result "1/2-1/2"]
[ECO "C88"]
[WhiteElo "2001"]
[BlackElo "1946"]
[Annotator "ChessBase"]
[PlyCount "84"]
[EventDate "2020.10.20"]
[EventType "swiss"]
[EventRounds "7"]
[EventCountry "GER"]
[SourceTitle "playchess.com"]
[Source "ChessBase"]
[SourceQuality "1"]
[TimeControl "40/5400+30:1800+30"]

1. e4 {[%emt 0:00:00]} e5 {[%emt 0:00:00]} 2. Nf3 {[%emt 0:00:00]} Nc6 {[%emt 0:00:00]} 3. Bb5 {[%emt 0:00:12]} a6 {[%emt 0:00:00]} 4. Ba4 {[%emt 0:00:08]} Nf6 {[%emt 0:00:07]} 5. O-O {[%emt 0:00:14]} Be7 {[%emt 0:00:14]} 6. Re1 {[%emt 0:00:16]} b5 {[%emt 0:00:16]} 7. Bb3 {[%emt 0:00:07]} O-O {[%emt 0:00:11]} 8. a4 {[%emt 0:00:20]} d5 {[%emt 0:04:57]} 9. Bxd5 {[%emt 0:07:49]} Nxd5 {[%emt 0:13:34]} 10. exd5 {[%emt 0:00:50]} Nd4 {[%emt 0:10:05]} 11. c3 {[%emt 0:08:41]} Nxf3+ {[%emt 0:07:06]} 12. Qxf3 {[%emt 0:00:16]} Bb7 {[%emt 0:00:52]} 13. Rxe5 {[%emt 0:27:40]} Bd6 {[%emt 0:03:04]} 14. Re3 {[%emt 0:00:18]} Bxd5 15. Qf5 {[%emt 0:03:19]} g6 {[%emt 0:10:05]} 16. Qg4 {[%emt 0:07:08]} h5 {[%emt 0:07:28]} 17. Qd1 {[%emt 0:11:17]} Bf4 {[%emt 0:09:44]} 18. d4 {[%emt 0:10:11]} Bxe3 {[%emt 0:04:12]} 19. Bxe3 {[%emt 0:00:42]} Qd7 {[%emt 0:04:21]} 20. Nd2 {[%emt 0:01:57]} Rab8 {[%emt 0:05:27]} 21. a5 {[%emt 0:06:31]} Rfe8 {[%emt 0:08:19]} 22. Nf3 {[%emt 0:01:01]} Qg4 {[%emt 0:02:34]} 23. b4 {[%emt 0:02:31]} f6 {[%emt 0:04:46]} 24. h3 {[%emt 0:02:03]} Qe4 {[%emt 0:01:02]} 25. Qb1 {[%emt 0:05:04]} Qxb1+ {[%emt 0:01:26]} 26. Rxb1 {[%emt 0:00:03]} Bxf3 27. gxf3 Kf7 {[%emt 0:01:48]} 28. d5 {[%emt 0:03:05]} Rbd8 {[%emt 0:00:42]} 29. Rd1 {[%emt 0:00:26]} Re5 {[%emt 0:00:22]} 30. c4 {[%emt 0:00:47]} bxc4 {[%emt 0:00:36]} 31. Rc1 {[%emt 0:00:02]} Rexd5 {[%emt 0:00:59]} 32. Rxc4 {[%emt 0:00:06]} R8d7 {[%emt 0:00:13]} 33. Bf4 {[%emt 0:01:40]} Rb5 {[%emt 0:00:53]} 34. Bxc7 {[%emt 0:00:13]} Rd1+ {[%emt 0:00:44]} 35. Kg2 {[%emt 0:00:05]} g5 {[%emt 0:00:35]} 36. Bb6 {[%emt 0:00:50]} Rd6 {[%emt 0:00:26]} 37. Rc7+ {[%emt 0:01:26]} Kg6 {[%emt 0:00:07]} 38. Ra7 {[%emt 0:00:37]} Re6 {[%emt 0:00:43]} 39. Rxa6 {[%emt 0:00:52]} Rxb4 {[%emt 0:00:19]} 40. Ra8 h4 41. a6 {[%emt 0:03:28]} Ra4 {[%emt 0:13:45]} 42. a7 {[%emt 0:00:31]} Rxb6 {[%emt 0:00:19]} 1/2-1/2

[Event "GER-ch Youth U14 2020"]
[Site "Willingen"]
[Date "2020.10.23"]
[Round "6.8"]
[White "Rempe, Jonas"]
[Black "Halabi, Ibrahim"]
[Result "1-0"]
[ECO "B90"]
[WhiteElo "1925"]
[BlackElo "1895"]
[Annotator "ChessBase"]
[PlyCount "57"]
[EventDate "2020.10.20"]
[EventType "swiss"]
[EventRounds "7"]
[EventCountry "GER"]
[SourceTitle "playchess.com"]
[Source "ChessBase"]
[SourceQuality "1"]
[TimeControl "40/5400+30:1800+30"]

1. e4 {[%emt 0:00:00]} c5 {[%emt 0:00:00]} 2. Nf3 {[%emt 0:00:00]} d6 {[%emt 0:00:03]} 3. d4 {[%emt 0:00:00]} cxd4 {[%emt 0:00:05]} 4. Nxd4 {[%emt 0:00:00]} Nf6 {[%emt 0:00:07]} 5. Nc3 {[%emt 0:00:00]} a6 {[%emt 0:00:06]} 6. Bc4 {[%emt 0:00:00]} e6 {[%emt 0:00:17]} 7. Be3 {[%emt 0:00:25]} b5 {[%emt 0:02:22]} 8. Bb3 {[%emt 0:00:16]} b4 {[%emt 0:02:48]} 9. Na4 {[%emt 0:00:41]} Nxe4 {[%emt 0:03:57]} 10. Nxe6 {[%emt 0:00:41]} fxe6 {[%emt 0:11:01]} 11. Nb6 {[%emt 0:00:07]} Ra7 {[%emt 0:01:59]} 12. Nxc8 {[%emt 0:00:12]} Rc7 {[%emt 0:03:56]} 13. Nb6 {[%emt 0:01:56]} d5 {[%emt 0:09:39]} 14. Qh5+ {[%emt 0:01:50]} Rf7 {[%emt 0:07:17]} 15. Ba4+ {[%emt 0:01:07]} Ke7 {[%emt 0:00:37]} 16. O-O-O {[%emt 0:05:56]} Rf5 {[%emt 0:05:32]} 17. Qe2 {[%emt 0:05:20]} Kf7 {[%emt 0:08:17]} 18. g4 {[%emt 0:01:06]} Rf6 {[%emt 0:00:15]} 19. f3 {[%emt 0:12:07]} Nc5 {[%emt 0:03:41]} 20. Bxc5 {[%emt 0:04:23]} Bxc5 {[%emt 0:00:07]} 21. Nc4 {[%emt 0:00:08]} Bd6 {[%emt 0:02:25]} 22. Ne3 {[%emt 0:02:56]} Bf4 {[%emt 0:02:06]} 23. Kb1 {[%emt 0:00:22]} Qa5 {[%emt 0:01:19]} 24. Bb3 {[%emt 0:00:45]} Qb6 {[%emt 0:01:04]} 25. Nxd5 {[%emt 0:07:31]} exd5 {[%emt 0:00:57]} 26. Rxd5 {[%emt 0:00:13]} Re8 {[%emt 0:09:19]} 27. Re5+ {[%emt 0:07:28]} Ree6 {[%emt 0:02:01]} 28. Rxe6 {[%emt 0:00:13]} Rxe6 {[%emt 0:00:08]} 29. Re1 {[%emt 0:00:04]} 1-0

[Event "GER-ch Youth U14 2020"]
[Site "Willingen"]
[Date "2020.10.23"]
[Round "6.9"]
[White "Tham, Nam"]
[Black "Foerster-Yialamas, Lucas"]
[Result "1-0"]
[ECO "B90"]
[WhiteElo "1890"]
[BlackElo "2033"]
[Annotator "ChessBase"]
[PlyCount "119"]
[EventDate "2020.10.20"]
[EventType "swiss"]
[EventRounds "7"]
[EventCountry "GER"]
[SourceTitle "playchess.com"]
[Source "ChessBase"]
[SourceQuality "1"]
[TimeControl "40/5400+30:1800+30"]

1. e4 {[%emt 0:00:00]} c5 {[%emt 0:00:00]} 2. Nf3 d6 3. d4 {[%emt 0:00:00]} cxd4 {[%emt 0:00:00]} 4. Nxd4 {[%emt 0:00:01]} Nf6 {[%emt 0:00:00]} 5. Nc3 {[%emt 0:00:11]} a6 {[%emt 0:00:00]} 6. Be3 {[%emt 0:00:16]} e5 {[%emt 0:00:00]} 7. Nb3 {[%emt 0:00:07]} Be6 {[%emt 0:00:00]} 8. f3 {[%emt 0:00:04]} Nbd7 {[%emt 0:00:00]} 9. Qd2 {[%emt 0:00:14]} b5 {[%emt 0:00:00]} 10. O-O-O {[%emt 0:00:09]} Be7 {[%emt 0:00:00]} 11. g4 {[%emt 0:00:28]} Nb6 {[%emt 0:00:00]} 12. Qf2 {[%emt 0:01:34]} Nc4 {[%emt 0:02:04]} 13. Bxc4 {[%emt 0:01:29]} bxc4 {[%emt 0:00:10]} 14. Nc5 {[%emt 0:03:41]} Bxg4 {[%emt 0:14:24]} 15. Nd5 {[%emt 0:10:42]} Nxd5 {[%emt 0:02:35]} 16. exd5 {[%emt 0:04:49]} Bf5 {[%emt 0:02:13]} 17. Ne4 {[%emt 0:00:09]} Bxe4 {[%emt 0:01:39]} 18. fxe4 {[%emt 0:00:08]} Qa5 {[%emt 0:04:33]} 19. Rhg1 {[%emt 0:04:40]} g6 {[%emt 0:05:39]} 20. Bh6 {[%emt 0:01:04]} Rg8 {[%emt 0:01:12]} 21. Qd2 {[%emt 0:04:48]} Qa4 {[%emt 0:08:04]} 22. Qc3 {[%emt 0:06:33]} Rc8 {[%emt 0:05:16]} 23. Rdf1 {[%emt 0:02:24]} Rb8 {[%emt 0:04:53]} 24. b3 {[%emt 0:14:11]} Qa3+ {[%emt 0:01:20]} 25. Kd2 {[%emt 0:00:10]} Qb4 {[%emt 0:05:01]} 26. bxc4 {[%emt 0:00:33]} Qxc3+ {[%emt 0:00:24]} 27. Kxc3 {[%emt 0:00:09]} f6 {[%emt 0:01:56]} 28. Be3 {[%emt 0:01:16]} Kd7 {[%emt 0:01:20]} 29. Rb1 {[%emt 0:00:34]} Rgc8 {[%emt 0:02:32]} 30. Ba7 {[%emt 0:02:13]} Ra8 {[%emt 0:04:39]} 31. Rb7+ {[%emt 0:01:21]} Rc7 {[%emt 0:00:10]} 32. Rxc7+ {[%emt 0:00:22]} Kxc7 {[%emt 0:00:00]} 33. Be3 {[%emt 0:00:15]} Rb8 {[%emt 0:00:44]} 34. Rf1 {[%emt 0:00:17]} Kd7 {[%emt 0:00:57]} 35. a4 {[%emt 0:03:49]} Bd8 {[%emt 0:01:42]} 36. c5 {[%emt 0:01:57]} dxc5 {[%emt 0:05:45]} 37. Bxc5 {[%emt 0:01:38]} Ba5+ {[%emt 0:04:46]} 38. Kc4 {[%emt 0:01:25]} Rb2 {[%emt 0:02:06]} 39. c3 {[%emt 0:00:17]} Rc2 {[%emt 0:01:05]} 40. Bb4 {[%emt 0:00:42]} Bd8 {[%emt 0:00:33]} 41. Bc5 {[%emt 0:33:02]} Re2 {[%emt 0:33:11]} 42. Kd3 {[%emt 0:00:24]} Rxh2 {[%emt 0:01:43]} 43. Rb1 {[%emt 0:00:06]} Rh3+ {[%emt 0:00:27]} 44. Kc4 {[%emt 0:00:04]} Ba5 {[%emt 0:00:27]} 45. Bb4 {[%emt 0:00:35]} Bxb4 {[%emt 0:02:00]} 46. Rxb4 {[%emt 0:00:13]} Kc7 {[%emt 0:00:17]} 47. a5 {[%emt 0:00:34]} Re3 {[%emt 0:00:33]} 48. Rb6 {[%emt 0:00:16]} Rxe4+ {[%emt 0:01:11]} 49. Kc5 {[%emt 0:00:05]} Re3 {[%emt 0:01:53]} 50. c4 {[%emt 0:00:40]} f5 {[%emt 0:00:55]} 51. d6+ {[%emt 0:00:18]} Kd7 {[%emt 0:00:11]} 52. Rxa6 {[%emt 0:00:24]} Rd3 {[%emt 0:01:44]} 53. Ra7+ {[%emt 0:00:49]} Ke6 {[%emt 0:00:02]} 54. Re7+ {[%emt 0:00:15]} Kf6 {[%emt 0:00:01]} 55. a6 {[%emt 0:00:52]} f4 {[%emt 0:00:47]} 56. a7 {[%emt 0:00:06]} Ra3 {[%emt 0:00:07]} 57. Rxh7 {[%emt 0:00:47]} f3 {[%emt 0:00:19]} 58. d7 {[%emt 0:00:03]} f2 {[%emt 0:01:34]} 59. d8=Q+ {[%emt 0:00:11]} Kf5 {[%emt 0:00:28]} 60. Rf7+ {[%emt 0:00:13]} 1-0